[Event "Titled Tuesday Blitz September 28 2021"]
[White "Bach, Ngoc Thuy Duong"]
[Black "Noboa Silva, Kevin"]
[WhiteFideId "12408956"]
[BlackFideId "3618471"]
[WhiteElo "1896"]
[BlackElo "2161"]
[Result "0-1"]
[Round "08"]
[TimeControl "180+1"]
[Date "2021.09.28"]
[WhiteClock "0:00:01"]
[BlackClock "0:00:07"]

1. d4 {[%clk 0:03:00]}  Nf6 {[%clk 0:02:59]} 2. c4 {[%clk 0:03:01]}  e6 {[%clk 0:02:58]} 3. Nc3 {[%clk 0:03:01]}  Bb4 {[%clk 0:02:58]} 4. Qc2 {[%clk 0:03:01]}  d6 {[%clk 0:02:57]} 5. Nf3 {[%clk 0:02:54]}  O-O {[%clk 0:02:54]} 6. e4 {[%clk 0:02:53]}  e5 {[%clk 0:02:49]} 7. d5 {[%clk 0:02:52]}  h6 {[%clk 0:02:45]} 8. Bd3 {[%clk 0:02:50]}  a5 {[%clk 0:02:45]} 9. Be3 {[%clk 0:02:49]}  Nbd7 {[%clk 0:02:44]} 10. a3 {[%clk 0:02:48]}  Bc5 {[%clk 0:02:44]} 11. O-O {[%clk 0:02:35]}  Re8 {[%clk 0:02:35]} 12. Bd2 {[%clk 0:02:09]}  Nh5 {[%clk 0:02:29]} 13. Ne2 {[%clk 0:02:05]}  a4 {[%clk 0:02:16]} 14. Nc3 {[%clk 0:01:56]}  Nb6 {[%clk 0:02:14]} 15. Be2 {[%clk 0:01:48]}  Qf6 {[%clk 0:02:07]} 16. Ne1 {[%clk 0:01:37]}  Nf4 {[%clk 0:02:05]} 17. Be3 {[%clk 0:01:16]}  Qg6 {[%clk 0:01:50]} 18. Bxf4 {[%clk 0:01:15]}  exf4 {[%clk 0:01:50]} 19. Nb5 {[%clk 0:01:14]}  Re7 {[%clk 0:01:33]} 20. Bf3 {[%clk 0:00:51]}  c6 {[%clk 0:01:25]} 21. dxc6 {[%clk 0:00:37]}  bxc6 {[%clk 0:01:24]} 22. e5 {[%clk 0:00:33]}  Bf5 {[%clk 0:01:09]} 23. Qc3 {[%clk 0:00:19]}  dxe5 {[%clk 0:01:03]} 24. Rd1 {[%clk 0:00:13]}  e4 {[%clk 0:00:58]} 25. Bh5 {[%clk 0:00:10]}  Qxh5 {[%clk 0:00:54]} 26. Nd6 {[%clk 0:00:10]}  Rd8 {[%clk 0:00:33]} 27. Nxf5 {[%clk 0:00:07]}  Qxf5 {[%clk 0:00:32]} 28. Rxd8+ {[%clk 0:00:06]}  Kh7 {[%clk 0:00:33]} 29. Nc2 {[%clk 0:00:05]}  f3 {[%clk 0:00:30]} 30. Ne3 {[%clk 0:00:04]}  Qg5 {[%clk 0:00:25]} 31. g3 {[%clk 0:00:04]}  Qh5 {[%clk 0:00:20]} 32. h4 {[%clk 0:00:04]}  Qg6 {[%clk 0:00:16]} 33. Rfd1 {[%clk 0:00:03]}  Qe6 {[%clk 0:00:16]} 34. Kh2 {[%clk 0:00:02]}  Nd7 {[%clk 0:00:14]} 35. R8xd7 {[%clk 0:00:02]}  Rxd7 {[%clk 0:00:14]} 36. Rxd7 {[%clk 0:00:02]}  Qxd7 {[%clk 0:00:15]} 37. Qe5 {[%clk 0:00:02]}  Bxe3 {[%clk 0:00:09]} 38. Qxe4+ {[%clk 0:00:02]}  Kg8 {[%clk 0:00:09]} 39. Qxe3 {[%clk 0:00:02]}  Qf5 {[%clk 0:00:08]} 40. Qf4 {[%clk 0:00:01]}  Qd3 {[%clk 0:00:07]} 0-1


[Site "https://www.chess.com"]

[Event "Titled Tuesday Blitz September 28 2021"]
[White "Cunha, Lucas Aguiar"]
[Black "Gontcharov, Vladislav"]
[WhiteFideId "2125404"]
[BlackFideId "4123492"]
[WhiteElo "2361"]
[BlackElo "2503"]
[Result "1-0"]
[Round "08"]
[TimeControl "180+1"]
[Date "2021.09.28"]
[WhiteClock "0:00:44"]
[BlackClock "0:00:51"]

1. e4 {[%clk 0:02:53]}  e6 {[%clk 0:02:49]} 2. d4 {[%clk 0:02:53]}  d5 {[%clk 0:02:50]} 3. Nd2 {[%clk 0:02:53]}  Be7 {[%clk 0:02:50]} 4. Ngf3 {[%clk 0:02:53]}  Nf6 {[%clk 0:02:49]} 5. e5 {[%clk 0:02:49]}  Nfd7 {[%clk 0:02:50]} 6. Bd3 {[%clk 0:02:49]}  c5 {[%clk 0:02:50]} 7. c3 {[%clk 0:02:50]}  Nc6 {[%clk 0:02:51]} 8. O-O {[%clk 0:02:44]}  g5 {[%clk 0:02:51]} 9. dxc5 {[%clk 0:02:42]}  g4 {[%clk 0:02:51]} 10. Nd4 {[%clk 0:02:42]}  Ncxe5 {[%clk 0:02:51]} 11. Bb5 {[%clk 0:02:35]}  Bxc5 {[%clk 0:02:45]} 12. N2b3 {[%clk 0:02:34]}  Bxd4 {[%clk 0:02:36]} 13. cxd4 {[%clk 0:02:31]}  Ng6 {[%clk 0:02:36]} 14. Qxg4 {[%clk 0:02:30]}  a6 {[%clk 0:02:34]} 15. Bd3 {[%clk 0:02:28]}  Qh4 {[%clk 0:02:26]} 16. Qf3 {[%clk 0:02:24]}  Qf6 {[%clk 0:02:22]} 17. Qg3 {[%clk 0:02:22]}  Qh4 {[%clk 0:02:04]} 18. Qc7 {[%clk 0:02:16]}  Qd8 {[%clk 0:02:04]} 19. Qc2 {[%clk 0:02:15]}  b6 {[%clk 0:01:50]} 20. Qc6 {[%clk 0:02:02]}  Ra7 {[%clk 0:01:43]} 21. Qc2 {[%clk 0:02:01]}  Bb7 {[%clk 0:01:41]} 22. Be3 {[%clk 0:01:49]}  Ra8 {[%clk 0:01:39]} 23. Rac1 {[%clk 0:01:47]}  Rc8 {[%clk 0:01:38]} 24. Qe2 {[%clk 0:01:47]}  Rxc1 {[%clk 0:01:27]} 25. Rxc1 {[%clk 0:01:48]}  Nb8 {[%clk 0:01:27]} 26. Qh5 {[%clk 0:01:38]}  O-O {[%clk 0:01:24]} 27. Bg5 {[%clk 0:01:24]}  Qd6 {[%clk 0:01:14]} 28. g3 {[%clk 0:01:15]}  f5 {[%clk 0:01:06]} 29. Re1 {[%clk 0:01:08]}  Nd7 {[%clk 0:01:04]} 30. Qe2 {[%clk 0:01:03]}  Re8 {[%clk 0:01:03]} 31. Bxf5 {[%clk 0:00:59]}  Ndf8 {[%clk 0:01:01]} 32. Bd3 {[%clk 0:00:57]}  e5 {[%clk 0:00:59]} 33. Bxa6 {[%clk 0:00:50]}  Bxa6 {[%clk 0:00:59]} 34. Qxa6 {[%clk 0:00:51]}  Qb4 {[%clk 0:00:55]} 35. Bd2 {[%clk 0:00:47]}  Qd6 {[%clk 0:00:55]} 36. Qb5 {[%clk 0:00:45]}  h5 {[%clk 0:00:51]} 37. Qxe8 {[%clk 0:00:44]} 1-0


[Site "https://www.chess.com"]

[Event "Titled Tuesday Blitz September 28 2021"]
[White "Damjanovic, Vladimir"]
[Black "Langrock, Hannes"]
[WhiteFideId "903795"]
[BlackFideId "4655290"]
[WhiteElo "2374"]
[BlackElo "2325"]
[Result "1-0"]
[Round "08"]
[TimeControl "180+1"]
[Date "2021.09.28"]
[WhiteClock "0:00:27"]
[BlackClock "0:00:02"]

1. Nf3 {[%clk 0:02:52]}  f5 {[%clk 0:02:59]} 2. e4 {[%clk 0:02:51]}  fxe4 {[%clk 0:02:58]} 3. Ng5 {[%clk 0:02:52]}  Nc6 {[%clk 0:02:58]} 4. d3 {[%clk 0:02:48]}  e3 {[%clk 0:02:53]} 5. Bxe3 {[%clk 0:02:46]}  e5 {[%clk 0:02:53]} 6. Nc3 {[%clk 0:02:13]}  Nf6 {[%clk 0:02:50]} 7. d4 {[%clk 0:02:11]}  exd4 {[%clk 0:02:41]} 8. Bxd4 {[%clk 0:02:12]}  Bb4 {[%clk 0:02:29]} 9. a3 {[%clk 0:01:38]}  Nxd4 {[%clk 0:02:21]} 10. Qxd4 {[%clk 0:01:35]}  Qe7+ {[%clk 0:02:15]} 11. Kd2 {[%clk 0:01:12]}  Bxc3+ {[%clk 0:01:44]} 12. bxc3 {[%clk 0:01:11]}  c5 {[%clk 0:01:18]} 13. Qd3 {[%clk 0:00:54]}  O-O {[%clk 0:00:43]} 14. Re1 {[%clk 0:00:53]}  Qd8 {[%clk 0:00:43]} 15. Qd6 {[%clk 0:00:52]}  b5 {[%clk 0:00:20]} 16. Bxb5 {[%clk 0:00:47]}  Bb7 {[%clk 0:00:20]} 17. Bc4+ {[%clk 0:00:48]}  Kh8 {[%clk 0:00:21]} 18. Nf7+ {[%clk 0:00:46]}  Rxf7 {[%clk 0:00:21]} 19. Bxf7 {[%clk 0:00:47]}  Ne4+ {[%clk 0:00:17]} 20. Rxe4 {[%clk 0:00:46]}  Bxe4 {[%clk 0:00:18]} 21. Re1 {[%clk 0:00:47]}  Qg5+ {[%clk 0:00:07]} 22. f4 {[%clk 0:00:25]}  Qxg2+ {[%clk 0:00:07]} 23. Re2 {[%clk 0:00:25]}  Qf3 {[%clk 0:00:07]} 24. Qe5 {[%clk 0:00:26]}  Rf8 {[%clk 0:00:03]} 25. Qxe4 {[%clk 0:00:23]}  Qxe4 {[%clk 0:00:02]} 26. Rxe4 {[%clk 0:00:24]}  d5 {[%clk 0:00:03]} 27. Re8 {[%clk 0:00:24]}  Rxe8 {[%clk 0:00:03]} 28. Bxe8 {[%clk 0:00:25]}  g6 {[%clk 0:00:02]} 29. Bc6 {[%clk 0:00:25]}  d4 {[%clk 0:00:02]} 30. cxd4 {[%clk 0:00:26]}  cxd4 {[%clk 0:00:02]} 31. Kd3 {[%clk 0:00:27]} 1-0


[Site "https://www.chess.com"]

[Event "Titled Tuesday Blitz September 28 2021"]
[White "Demin, Vladimir"]
[Black "Erdogdu, Mert"]
[WhiteFideId "4167457"]
[BlackFideId "6301495"]
[WhiteElo "2525"]
[BlackElo "2485"]
[Result "1-0"]
[Round "08"]
[TimeControl "180+1"]
[Date "2021.09.28"]
[WhiteClock "0:00:13"]
[BlackClock "0:00:02"]

1. e4 {[%clk 0:02:50]}  c5 {[%clk 0:02:57]} 2. Nf3 {[%clk 0:02:48]}  d6 {[%clk 0:02:57]} 3. d4 {[%clk 0:02:48]}  cxd4 {[%clk 0:02:57]} 4. Qxd4 {[%clk 0:02:49]}  Nc6 {[%clk 0:02:57]} 5. Bb5 {[%clk 0:02:49]}  Bd7 {[%clk 0:02:56]} 6. Bxc6 {[%clk 0:02:49]}  Bxc6 {[%clk 0:02:57]} 7. Nc3 {[%clk 0:02:50]}  Nf6 {[%clk 0:02:57]} 8. Bg5 {[%clk 0:02:50]}  e6 {[%clk 0:02:57]} 9. O-O-O {[%clk 0:02:50]}  Be7 {[%clk 0:02:58]} 10. Qd3 {[%clk 0:02:49]}  Qa5 {[%clk 0:02:56]} 11. Kb1 {[%clk 0:02:49]}  O-O {[%clk 0:02:39]} 12. h4 {[%clk 0:02:49]}  h6 {[%clk 0:02:37]} 13. Bc1 {[%clk 0:02:44]}  Rfc8 {[%clk 0:02:33]} 14. Nd4 {[%clk 0:02:43]}  a6 {[%clk 0:02:20]} 15. f4 {[%clk 0:02:42]}  b5 {[%clk 0:02:17]} 16. e5 {[%clk 0:02:37]}  dxe5 {[%clk 0:02:14]} 17. fxe5 {[%clk 0:02:37]}  Ne8 {[%clk 0:01:18]} 18. Nxc6 {[%clk 0:02:14]}  Rxc6 {[%clk 0:01:17]} 19. g4 {[%clk 0:02:11]}  Rac8 {[%clk 0:01:15]} 20. g5 {[%clk 0:02:06]}  b4 {[%clk 0:01:10]} 21. Ne4 {[%clk 0:02:06]}  Qxe5 {[%clk 0:01:04]} 22. gxh6 {[%clk 0:02:04]}  Rxc2 {[%clk 0:01:01]} 23. Ng5 {[%clk 0:01:53]}  Bxg5 {[%clk 0:00:29]} 24. hxg5 {[%clk 0:01:51]}  g6 {[%clk 0:00:29]} 25. Rhf1 {[%clk 0:01:40]}  Nd6 {[%clk 0:00:26]} 26. h7+ {[%clk 0:01:29]}  Kh8 {[%clk 0:00:24]} 27. Rfe1 {[%clk 0:01:15]}  Qf5 {[%clk 0:00:16]} 28. Qd4+ {[%clk 0:00:58]}  e5 {[%clk 0:00:16]} 29. Qxe5+ {[%clk 0:00:58]}  Qxe5 {[%clk 0:00:16]} 30. Rxe5 {[%clk 0:00:59]}  Nf5 {[%clk 0:00:16]} 31. Re4 {[%clk 0:00:50]}  a5 {[%clk 0:00:12]} 32. Bf4 {[%clk 0:00:49]}  Kxh7 {[%clk 0:00:07]} 33. Be5 {[%clk 0:00:44]}  f6 {[%clk 0:00:05]} 34. Bxf6 {[%clk 0:00:43]}  Kg8 {[%clk 0:00:06]} 35. Rh1 {[%clk 0:00:36]}  R2c4 {[%clk 0:00:02]} 36. Rxc4 {[%clk 0:00:24]}  Rxc4 {[%clk 0:00:02]} 37. Rh8+ {[%clk 0:00:24]}  Kf7 {[%clk 0:00:03]} 38. Ra8 {[%clk 0:00:24]}  Rc5 {[%clk 0:00:03]} 39. b3 {[%clk 0:00:22]}  Ke6 {[%clk 0:00:03]} 40. Ra6+ {[%clk 0:00:21]}  Kd5 {[%clk 0:00:03]} 41. Bb2 {[%clk 0:00:19]}  Nh4 {[%clk 0:00:03]} 42. a3 {[%clk 0:00:17]}  bxa3 {[%clk 0:00:02]} 43. Bxa3 {[%clk 0:00:17]}  Rb5 {[%clk 0:00:02]} 44. Ka2 {[%clk 0:00:18]}  Ke4 {[%clk 0:00:03]} 45. Be7 {[%clk 0:00:16]}  Nf5 {[%clk 0:00:02]} 46. Bd8 {[%clk 0:00:15]}  Nd4 {[%clk 0:00:01]} 47. Rxg6 {[%clk 0:00:14]}  Nxb3 {[%clk 0:00:02]} 48. Ra6 {[%clk 0:00:13]} 1-0


[Site "https://www.chess.com"]

[Event "Titled Tuesday Blitz September 28 2021"]
[White "Dzhaparov, Medet"]
[Black "Golubev, Mikhail"]
[WhiteFideId "13803689"]
[BlackFideId "14100983"]
[WhiteElo "1702"]
[BlackElo "2374"]
[Result "0-1"]
[Round "08"]
[TimeControl "180+1"]
[Date "2021.09.28"]
[WhiteClock "0:00:01"]
[BlackClock "0:00:03"]

1. d4 {[%clk 0:03:00]}  Nf6 {[%clk 0:02:59]} 2. c4 {[%clk 0:03:00]}  g6 {[%clk 0:02:59]} 3. Nf3 {[%clk 0:03:00]}  Bg7 {[%clk 0:02:59]} 4. g3 {[%clk 0:03:00]}  O-O {[%clk 0:02:59]} 5. Bg2 {[%clk 0:03:01]}  d6 {[%clk 0:03:00]} 6. O-O {[%clk 0:03:01]}  Nbd7 {[%clk 0:03:01]} 7. Nc3 {[%clk 0:03:01]}  e5 {[%clk 0:03:01]} 8. e4 {[%clk 0:03:01]}  Re8 {[%clk 0:03:02]} 9. Re1 {[%clk 0:03:00]}  exd4 {[%clk 0:03:00]} 10. Nxd4 {[%clk 0:03:00]}  c6 {[%clk 0:03:00]} 11. h3 {[%clk 0:03:00]}  Qb6 {[%clk 0:03:00]} 12. Nb3 {[%clk 0:02:53]}  Ne5 {[%clk 0:02:41]} 13. Be3 {[%clk 0:02:48]}  Qb4 {[%clk 0:02:39]} 14. Bf1 {[%clk 0:02:06]}  Nxc4 {[%clk 0:02:33]} 15. a3 {[%clk 0:02:04]}  Nxe3 {[%clk 0:02:31]} 16. axb4 {[%clk 0:01:51]}  Nxd1 {[%clk 0:02:30]} 17. Raxd1 {[%clk 0:01:52]}  Be6 {[%clk 0:02:22]} 18. Na5 {[%clk 0:01:50]}  Rab8 {[%clk 0:02:03]} 19. Rxd6 {[%clk 0:01:46]}  Bf8 {[%clk 0:02:03]} 20. Rd4 {[%clk 0:01:47]}  c5 {[%clk 0:01:59]} 21. bxc5 {[%clk 0:01:41]}  Bxc5 {[%clk 0:01:59]} 22. Rd2 {[%clk 0:01:39]}  Bb4 {[%clk 0:01:55]} 23. Nc4 {[%clk 0:01:37]}  Bxc4 {[%clk 0:01:48]} 24. Bxc4 {[%clk 0:01:36]}  Rec8 {[%clk 0:01:41]} 25. Ba2 {[%clk 0:01:16]}  Rxc3 {[%clk 0:01:35]} 26. bxc3 {[%clk 0:01:15]}  Bxc3 {[%clk 0:01:35]} 27. Red1 {[%clk 0:01:13]}  Bxd2 {[%clk 0:01:35]} 28. Rxd2 {[%clk 0:01:14]}  Re8 {[%clk 0:01:27]} 29. f3 {[%clk 0:01:07]}  Re7 {[%clk 0:01:27]} 30. Kf2 {[%clk 0:00:52]}  Kg7 {[%clk 0:01:25]} 31. Rc2 {[%clk 0:00:45]}  b6 {[%clk 0:01:17]} 32. Rc8 {[%clk 0:00:41]}  h5 {[%clk 0:01:13]} 33. Ke3 {[%clk 0:00:36]}  Nh7 {[%clk 0:00:52]} 34. f4 {[%clk 0:00:33]}  Nf8 {[%clk 0:00:44]} 35. Bd5 {[%clk 0:00:11]}  Ne6 {[%clk 0:00:37]} 36. Ra8 {[%clk 0:00:03]}  Nc5 {[%clk 0:00:35]} 37. Kd4 {[%clk 0:00:02]}  Kf6 {[%clk 0:00:25]} 38. e5+ {[%clk 0:00:02]}  Kg7 {[%clk 0:00:25]} 39. g4 {[%clk 0:00:01]}  hxg4 {[%clk 0:00:23]} 40. hxg4 {[%clk 0:00:02]}  Ne6+ {[%clk 0:00:22]} 41. Ke4 {[%clk 0:00:02]}  Nc7 {[%clk 0:00:19]} 42. Rd8 {[%clk 0:00:01]}  Nxd5 {[%clk 0:00:18]} 43. Kxd5 {[%clk 0:00:02]}  Rc7 {[%clk 0:00:15]} 44. Kd6 {[%clk 0:00:02]}  Rc4 {[%clk 0:00:14]} 45. f5 {[%clk 0:00:02]}  gxf5 {[%clk 0:00:11]} 46. gxf5 {[%clk 0:00:03]}  b5 {[%clk 0:00:09]} 47. e6 {[%clk 0:00:03]}  fxe6 {[%clk 0:00:08]} 48. fxe6 {[%clk 0:00:04]}  Rd4+ {[%clk 0:00:07]} 49. Kc7 {[%clk 0:00:04]}  Re4 {[%clk 0:00:07]} 50. Kd7 {[%clk 0:00:04]}  Kf6 {[%clk 0:00:05]} 51. Rf8+ {[%clk 0:00:03]}  Kg7 {[%clk 0:00:06]} 52. Rf7+ {[%clk 0:00:03]}  Kg6 {[%clk 0:00:06]} 53. Rf1 {[%clk 0:00:03]}  b4 {[%clk 0:00:06]} 54. e7 {[%clk 0:00:03]}  a5 {[%clk 0:00:06]} 55. e8=Q+ {[%clk 0:00:03]}  Rxe8 {[%clk 0:00:05]} 56. Kxe8 {[%clk 0:00:03]}  b3 {[%clk 0:00:05]} 57. Rf3 {[%clk 0:00:01]}  a4 {[%clk 0:00:04]} 58. Rf4 {[%clk 0:00:01]}  b2 {[%clk 0:00:04]} 59. Rxa4 {[%clk 0:00:01]}  b1=Q {[%clk 0:00:04]} 60. Ra6+ {[%clk 0:00:01]}  Kg7 {[%clk 0:00:03]} 61. Ra7+ {[%clk 0:00:02]}  Kg8 {[%clk 0:00:03]} 62. Re7 {[%clk 0:00:02]}  Qb8+ {[%clk 0:00:03]} 63. Kd7 {[%clk 0:00:03]}  Qb5+ {[%clk 0:00:03]} 64. Kd6 {[%clk 0:00:03]}  Kf8 {[%clk 0:00:03]} 65. Re5 {[%clk 0:00:03]}  Qb6+ {[%clk 0:00:03]} 66. Kd5 {[%clk 0:00:04]}  Kf7 {[%clk 0:00:04]} 67. Ke4 {[%clk 0:00:04]}  Kf6 {[%clk 0:00:03]} 68. Rf5+ {[%clk 0:00:04]}  Kg6 {[%clk 0:00:04]} 69. Re5 {[%clk 0:00:04]}  Qc6+ {[%clk 0:00:04]} 70. Kf4 {[%clk 0:00:04]}  Qd6 {[%clk 0:00:04]} 71. Ke4 {[%clk 0:00:04]}  Kf6 {[%clk 0:00:04]} 72. Rf5+ {[%clk 0:00:05]}  Ke6 {[%clk 0:00:05]} 73. Rf3 {[%clk 0:00:05]}  Qb4+ {[%clk 0:00:05]} 74. Ke3 {[%clk 0:00:05]}  Ke5 {[%clk 0:00:05]} 75. Rf2 {[%clk 0:00:06]}  Qc3+ {[%clk 0:00:05]} 76. Ke2 {[%clk 0:00:06]}  Ke4 {[%clk 0:00:06]} 77. Kf1 {[%clk 0:00:06]}  Qh3+ {[%clk 0:00:05]} 78. Kg1 {[%clk 0:00:06]}  Ke3 {[%clk 0:00:05]} 79. Rg2 {[%clk 0:00:05]}  Qh4 {[%clk 0:00:03]} 80. Rh2 {[%clk 0:00:04]}  Qe1+ {[%clk 0:00:02]} 81. Kg2 {[%clk 0:00:05]}  Qf2+ {[%clk 0:00:02]} 82. Kh3 {[%clk 0:00:05]}  Qf3+ {[%clk 0:00:03]} 83. Kh4 {[%clk 0:00:06]}  Kf4 {[%clk 0:00:03]} 84. Rg2 {[%clk 0:00:01]}  Qxg2 {[%clk 0:00:03]} 0-1


[Site "https://www.chess.com"]

[Event "Titled Tuesday Blitz September 28 2021"]
[White "Ekdyshman, Mikhail"]
[Black "Janaszak, Dawid"]
[WhiteFideId "4149416"]
[BlackFideId "1119206"]
[WhiteElo "2256"]
[BlackElo "2283"]
[Result "1-0"]
[Round "08"]
[TimeControl "180+1"]
[Date "2021.09.28"]
[WhiteClock "0:01:18"]
[BlackClock "0:00:37"]

1. d4 {[%clk 0:03:00]}  Nf6 {[%clk 0:01:57]} 2. c4 {[%clk 0:02:59]}  c5 {[%clk 0:01:57]} 3. d5 {[%clk 0:02:59]}  b5 {[%clk 0:01:58]} 4. cxb5 {[%clk 0:03:00]}  a6 {[%clk 0:01:58]} 5. e3 {[%clk 0:03:00]}  e6 {[%clk 0:01:58]} 6. Nc3 {[%clk 0:03:00]}  Bb7 {[%clk 0:01:55]} 7. e4 {[%clk 0:02:56]}  Bd6 {[%clk 0:01:47]} 8. Nf3 {[%clk 0:02:49]}  Qc7 {[%clk 0:01:44]} 9. b6 {[%clk 0:02:40]}  Qxb6 {[%clk 0:01:41]} 10. e5 {[%clk 0:02:40]}  Nxd5 {[%clk 0:01:39]} 11. exd6 {[%clk 0:02:36]}  Qxd6 {[%clk 0:01:40]} 12. Bc4 {[%clk 0:02:25]}  O-O {[%clk 0:01:33]} 13. O-O {[%clk 0:02:22]}  Nc6 {[%clk 0:01:28]} 14. Nxd5 {[%clk 0:02:07]}  exd5 {[%clk 0:01:29]} 15. Qxd5 {[%clk 0:02:07]}  Qc7 {[%clk 0:01:29]} 16. Qxc5 {[%clk 0:02:05]}  d6 {[%clk 0:01:25]} 17. Qh5 {[%clk 0:01:56]}  g6 {[%clk 0:01:17]} 18. Qh6 {[%clk 0:01:52]}  d5 {[%clk 0:00:53]} 19. Bxd5 {[%clk 0:01:42]}  Rfd8 {[%clk 0:00:46]} 20. Bf4 {[%clk 0:01:32]}  Qe7 {[%clk 0:00:44]} 21. Ng5 {[%clk 0:01:24]}  Qf6 {[%clk 0:00:37]} 22. Bxf7+ {[%clk 0:01:18]} 1-0


[Site "https://www.chess.com"]

[Event "Titled Tuesday Blitz September 28 2021"]
[White "Fier, Alexandr"]
[Black "Sadhwani, Raunak"]
[WhiteFideId "2107139"]
[BlackFideId "35093487"]
[WhiteElo "2569"]
[BlackElo "2517"]
[Result "1-0"]
[Round "08"]
[TimeControl "180+1"]
[Date "2021.09.28"]
[WhiteClock "0:01:17"]
[BlackClock "0:00:10"]

1. d4 {[%clk 0:03:00]}  Nf6 {[%clk 0:03:00]} 2. c4 {[%clk 0:03:01]}  e6 {[%clk 0:03:00]} 3. Nc3 {[%clk 0:03:01]}  Bb4 {[%clk 0:02:59]} 4. e3 {[%clk 0:03:01]}  O-O {[%clk 0:02:57]} 5. Ne2 {[%clk 0:03:02]}  c6 {[%clk 0:02:53]} 6. a3 {[%clk 0:03:02]}  Ba5 {[%clk 0:02:53]} 7. Qc2 {[%clk 0:03:02]}  d5 {[%clk 0:02:51]} 8. Ng3 {[%clk 0:03:03]}  Re8 {[%clk 0:02:48]} 9. Be2 {[%clk 0:03:02]}  Bc7 {[%clk 0:02:47]} 10. O-O {[%clk 0:03:00]}  Nbd7 {[%clk 0:02:48]} 11. Rd1 {[%clk 0:02:59]}  a5 {[%clk 0:02:36]} 12. b3 {[%clk 0:02:54]}  dxc4 {[%clk 0:02:26]} 13. bxc4 {[%clk 0:02:53]}  e5 {[%clk 0:02:27]} 14. d5 {[%clk 0:02:52]}  cxd5 {[%clk 0:02:23]} 15. cxd5 {[%clk 0:02:52]}  Bd6 {[%clk 0:02:20]} 16. Nb5 {[%clk 0:02:45]}  Nc5 {[%clk 0:02:20]} 17. a4 {[%clk 0:02:45]}  b6 {[%clk 0:02:19]} 18. Ba3 {[%clk 0:02:44]}  Bb7 {[%clk 0:01:59]} 19. Nf5 {[%clk 0:02:43]}  Bf8 {[%clk 0:01:59]} 20. d6 {[%clk 0:02:42]}  Be4 {[%clk 0:01:59]} 21. Ne7+ {[%clk 0:02:31]}  Bxe7 {[%clk 0:02:00]} 22. dxe7 {[%clk 0:02:32]}  Qxe7 {[%clk 0:02:01]} 23. Qb2 {[%clk 0:02:29]}  Red8 {[%clk 0:01:56]} 24. Nc3 {[%clk 0:02:28]}  Qe6 {[%clk 0:01:46]} 25. Nxe4 {[%clk 0:02:24]}  Ncxe4 {[%clk 0:01:47]} 26. Rab1 {[%clk 0:02:20]}  Rxd1+ {[%clk 0:01:44]} 27. Rxd1 {[%clk 0:02:20]}  h5 {[%clk 0:01:29]} 28. h3 {[%clk 0:02:20]}  Rc8 {[%clk 0:01:28]} 29. Ba6 {[%clk 0:02:10]}  Rc7 {[%clk 0:01:26]} 30. Rd8+ {[%clk 0:02:06]}  Kh7 {[%clk 0:01:26]} 31. Bd3 {[%clk 0:02:06]}  Rd7 {[%clk 0:01:26]} 32. Rxd7 {[%clk 0:02:05]}  Qxd7 {[%clk 0:01:27]} 33. Qb1 {[%clk 0:02:02]}  Qxa4 {[%clk 0:01:26]} 34. Be7 {[%clk 0:02:02]}  g6 {[%clk 0:01:26]} 35. f3 {[%clk 0:02:00]}  Nc3 {[%clk 0:00:57]} 36. Qxb6 {[%clk 0:01:56]}  Qd1+ {[%clk 0:00:51]} 37. Kh2 {[%clk 0:01:55]}  Ncd5 {[%clk 0:00:50]} 38. Qa6 {[%clk 0:01:52]}  Ng8 {[%clk 0:00:31]} 39. Bd6 {[%clk 0:01:48]}  Nb4 {[%clk 0:00:32]} 40. Bxg6+ {[%clk 0:01:28]}  fxg6 {[%clk 0:00:26]} 41. Qb7+ {[%clk 0:01:27]}  Kh6 {[%clk 0:00:26]} 42. Bxe5 {[%clk 0:01:16]}  Qd5 {[%clk 0:00:10]} 43. Qg7+ {[%clk 0:01:16]}  Kg5 {[%clk 0:00:11]} 44. e4 {[%clk 0:01:17]}  Qe6 {[%clk 0:00:10]} 45. f4+ {[%clk 0:01:17]} 1-0


[Site "https://www.chess.com"]

[Event "Titled Tuesday Blitz September 28 2021"]
[White "Garv Gaur"]
[Black "Ladan, Nicholas"]
[WhiteFideId "45030839"]
[BlackFideId "30918855"]
[WhiteElo "1950"]
[BlackElo "2353"]
[Result "1-0"]
[Round "08"]
[TimeControl "180+1"]
[Date "2021.09.28"]
[WhiteClock "0:02:17"]
[BlackClock "0:01:45"]

1. d4 {[%clk 0:03:00]}  d5 {[%clk 0:03:00]} 2. Nf3 {[%clk 0:03:01]}  Nf6 {[%clk 0:03:00]} 3. c4 {[%clk 0:03:01]}  c6 {[%clk 0:03:00]} 4. g3 {[%clk 0:03:01]}  Bg4 {[%clk 0:02:55]} 5. Ne5 {[%clk 0:03:00]}  Bh5 {[%clk 0:02:53]} 6. Nc3 {[%clk 0:02:59]}  e6 {[%clk 0:02:52]} 7. Qb3 {[%clk 0:02:58]}  Qb6 {[%clk 0:02:50]} 8. c5 {[%clk 0:02:58]}  Qxb3 {[%clk 0:02:46]} 9. axb3 {[%clk 0:02:59]}  Nbd7 {[%clk 0:02:43]} 10. Bf4 {[%clk 0:02:58]}  a6 {[%clk 0:02:39]} 11. b4 {[%clk 0:02:56]}  Rc8 {[%clk 0:02:38]} 12. Bg2 {[%clk 0:02:53]}  h6 {[%clk 0:02:33]} 13. h4 {[%clk 0:02:49]}  Nxe5 {[%clk 0:02:27]} 14. Bxe5 {[%clk 0:02:42]}  Nd7 {[%clk 0:02:27]} 15. Bf4 {[%clk 0:02:42]}  f6 {[%clk 0:02:25]} 16. Bh3 {[%clk 0:02:38]}  Kf7 {[%clk 0:02:09]} 17. e4 {[%clk 0:02:37]}  g5 {[%clk 0:02:01]} 18. exd5 {[%clk 0:02:24]}  Bf3 {[%clk 0:01:51]} 19. dxe6+ {[%clk 0:02:22]}  Ke7 {[%clk 0:01:48]} 20. exd7 {[%clk 0:02:22]}  Rd8 {[%clk 0:01:48]} 21. Bd6+ {[%clk 0:02:22]}  Kf7 {[%clk 0:01:48]} 22. Bc7 {[%clk 0:02:21]}  Rxd7 {[%clk 0:01:45]} 23. Bxd7 {[%clk 0:02:20]}  Bxh1 {[%clk 0:01:46]} 24. O-O-O {[%clk 0:02:17]}  Bf3 {[%clk 0:01:45]} 25. Re1 {[%clk 0:02:17]} 1-0


[Site "https://www.chess.com"]